bitfinex/quotes_ETHUSD_20241106
["timestamp","ask_amount","ask_price","bid_price","bid_amount"]
[1730858933305,4.01948,2487.9,2487.7,0.7548]
[1730858933594,4.01972,2487.8,2487.4,0.7548]
[1730858933772,4.01948,2487.9,2487.4,0.7548]
[1730858934097,4.01968,2487.8,2487.4,6.58769907]
[1730858934860,4.01948,2487.9,2487.4,6.58769907]
[1730858935102,4.01885,2488.3,2487.7,5.83289907]
[1730858935599,4.01897,2488.2,2487.7,5.83289907]
[1730858936163,4.01917,2488.1,2487.7,5.83289907]
[1730858936785,4.01885,2488.3,2487.7,5.83289907]
[1730858936786,4.01885,2488.3,2487.7,6.81818798]
[1730858937107,4.01885,2488.3,2487.7,5.83289907]
[1730858937478,4.01898,2488.2,2487.7,5.83289907]
[1730858937961,4.01917,2488.1,2487.7,5.83289907]
[1730858938603,4.01885,2488.3,2487.8,0.7733]
[1730858938893,8.0378,2488.3,2487.8,0.7733]
[1730858939405,4.42655404,2488.5,2487.9,4.56945]
[1730858939561,4.01857,2488.5,2487.9,4.56945]
[1730858940163,4.01857,2488.5,2488.0,4.01924]
[1730858940508,4.0794904,2488.7,2488.3,6.60619907]
[1730858940810,0.0612504,2488.7,2488.6,7.15619907]
[1730858941003,0.0612504,2488.7,2488.6,11.17451907]
[1730858941157,4.01662,2489.7,2489.1,6.60619907]
[1730858941360,4.01641,2489.8,2489.2,4.56734]
[1730858941560,4.01649,2489.8,2489.2,4.56734]
[1730858942102,4.0775204,2489.9,2489.2,0.55]
[1730858942309,4.01669,2489.7,2489.2,0.55]
[1730858943017,4.017,2489.5,2489.1,0.7733]
[1730858943229,4.01665,2489.7,2489.2,0.08033631]
[1730858943427,4.01665,2489.7,2489.1,6.60619907]
[1730858943732,4.01688,2489.5,2489.1,6.60619907]
[1730858943890,4.0775404,2489.9,2489.4,5.83289907]
[1730858944484,0.0612504,2489.9,2489.5,0.08032375]
[1730858944729,0.0612504,2489.9,2489.7,5.83289907]
[1730858945021,0.0612504,2489.9,2489.7,6.60619907]
[1730858945438,0.0612504,2489.9,2489.4,6.60619907]
[1730858945588,4.0775804,2489.9,2489.4,6.60619907]
[1730858945784,8.0939504,2489.9,2489.4,6.60619907]
[1730858945985,4.01668,2489.7,2489.2,0.55]
[1730858946621,4.82948,2489.7,2489.1,6.60619907]
[1730858946822,4.01668,2489.7,2489.1,6.60619907]
[1730858946985,0.0612504,2489.9,2489.8,4.01638]
[1730858947181,0.0612504,2489.9,2489.8,10.73289287]
[1730858947382,0.0612504,2489.9,2489.8,10.65258107]
[1730858947584,4.01482,2490.8,2490.1,4.01576]
[1730858947886,0.8128,2490.9,2490.3,4.56556]
[1730858948123,4.01462,2490.9,2490.4,0.7733]
[1730858948319,4.01478,2490.8,2490.4,0.7733]
[1730858948524,4.01503,2490.7,2490.4,0.7733]
[1730858948929,4.01503,2490.7,2490.2,5.83289907]
[1730858948930,4.01511,2490.6,2490.2,5.83289907]
[1730858949149,4.01511,2490.6,2490.1,0.7733]
[1730858949433,0.036225,2490.7,2490.3,0.55]
[1730858949935,0.036225,2490.7,2490.3,4.56555]
[1730858950230,0.036225,2490.7,2490.3,0.55]
[1730858951097,4.0151,2490.6,2490.1,0.7733]
[1730858951705,4.01552,2490.4,2489.9,5.83289907]
[1730858952294,5.2331025,2490.6,2490.0,0.08030638]
[1730858952495,0.036225,2490.7,2490.0,4.09625638]
[1730858952846,0.036225,2490.7,2490.5,5.83289907]
[1730858953047,0.036225,2490.7,2490.6,4.64537869]
[1730858953247,0.036225,2490.7,2490.6,5.34839]
[1730858953608,0.036225,2490.7,2490.6,43.34839]
[1730858954353,0.036225,2490.7,2490.6,43.70678499]
[1730858954639,0.036225,2490.7,2490.6,1.3233]
[1730858955046,0.036225,2490.7,2490.6,5.33839]
[1730858955204,0.036225,2490.7,2490.6,5.70715067]
[1730858955402,0.036225,2490.7,2490.6,1.3233]
[1730858955607,0.036225,2490.7,2490.3,0.7733]
[1730858955807,0.036225,2490.7,2490.5,5.83289907]
[1730858956040,0.036225,2490.7,2490.6,0.08028955]
[1730858956247,0.036225,2490.7,2490.5,5.83289907]
[1730858956417,4.051205,2490.7,2490.5,5.83289907]
[1730858956624,0.036225,2490.7,2490.5,5.83289907]
[1730858957243,3.2133371,2490.8,2490.5,5.83289907]
[1730858958309,3.93612181,2490.8,2490.5,5.83289907]
[1730858958557,4.0147,2490.9,2490.5,5.83289907]
[1730858958839,4.01452,2491.0,2490.8,5.83289907]
[1730858959640,4.01461,2490.9,2490.8,5.83289907]
[1730858959852,4.817392,2491.0,2490.8,5.83289907]
[1730858960226,8.831932,2491.0,2490.8,5.83289907]
[1730858960430,4.817392,2491.0,2490.8,5.83289907]
[1730858960961,0.8128,2491.3,2490.8,5.83289907]
[1730858960962,4.01423,2491.2,2490.8,5.83289907]
[1730858961168,4.01446,2491.0,2490.8,5.83289907]
[1730858961325,4.01423,2491.2,2490.8,5.83289907]
[1730858961520,4.01423,2491.2,2490.5,0.7733]
[1730858961521,4.01423,2491.2,2491.1,5.83289907]
[1730858961948,0.8128,2491.3,2491.1,5.83289907]
[1730858961949,4.82676,2491.3,2491.1,5.83289907]
[1730858962132,4.82676,2491.3,2490.8,5.83289907]
[1730858962472,4.01412,2491.2,2490.8,5.83289907]
[1730858962782,4.01429,2491.1,2490.8,5.83289907]
[1730858963261,4.01429,2491.1,2490.6,4.01499]
[1730858963425,4.01429,2491.1,2490.6,0.55]
[1730858963767,4.898395,2491.1,2490.6,4.56501]
[1730858963927,8.912815,2491.1,2490.5,6.60619907]
[1730858964123,0.884105,2491.1,2490.5,6.60619907]
[1730858964327,0.884105,2491.1,2490.6,4.01495]
[1730858964564,0.8128,2491.6,2490.9,9.84746907]
[1730858964724,4.01341,2491.7,2491.3,5.83289907]
[1730858964924,4.496031,2491.7,2491.3,5.83289907]
[1730858965147,4.01357,2491.6,2491.3,5.83289907]
[1730858965328,4.8259,2491.9,2491.3,5.83289907]
[1730858965522,4.8259,2491.9,2491.4,0.08026655]
[1730858965777,4.8259,2491.9,2491.3,9.84684907]
[1730858965778,5.31474734,2491.9,2491.3,9.84684907]
[1730858965927,4.0133,2491.8,2491.3,5.83289907]
[1730858966265,4.01361,2491.6,2491.0,6.60619907]
[1730858966467,4.01361,2491.6,2491.0,10.62054907]
[1730858966670,4.01359,2491.6,2491.0,10.62054907]
[1730858966883,4.01389,2491.4,2491.0,6.60619907]
[1730858967464,4.01324,2491.8,2491.3,9.84685907]
[1730858967761,4.01324,2491.8,2491.3,5.83289907]
[1730858967980,0.8128,2491.9,2491.1,4.01415]
[1730858967981,4.01335,2491.7,2491.1,4.01415]
[1730858968184,8.02677,2491.7,2491.1,4.01415]
[1730858968345,8.02677,2491.7,2491.2,0.37075817]
[1730858968549,4.01374,2491.5,2491.1,0.5932123]
[1730858968749,0.38753734,2491.8,2491.2,0.37074237]
[1730858968945,4.40079734,2491.8,2491.3,4.38468237]
[1730858969285,0.0625734,2492.0,2491.6,4.01348]
[1730858969589,4.0754634,2492.0,2491.7,0.3706624]
[1730858969759,4.48299774,2492.0,2491.4,10.65059907]
[1730858969958,4.48299774,2492.0,2491.5,0.96487852]
[1730858970158,0.0625734,2492.0,2491.6,4.38443712]
[1730858970491,0.0625734,2492.0,2491.7,7.3475257]
[1730858970697,0.0625734,2492.0,2491.8,0.37095204]
[1730858970848,0.0625734,2492.0,2491.9,0.37095204]
[1730858971191,0.0625734,2492.0,2491.9,5.73785204]
[1730858971548,0.0625734,2492.0,2491.9,6.33113079]
[1730858971748,0.0625734,2492.0,2491.9,2.31813079]
[1730858971946,0.0625734,2492.0,2491.9,1.72485204]
[1730858972583,0.0625734,2492.0,2491.9,5.73785204]
[1730858972794,0.0625734,2492.0,2491.9,7.48835677]
[1730858972945,4.01161,2492.8,2492.3,4.01229]
[1730858972946,4.79501,2492.8,2492.3,4.01229]
[1730858973153,0.7834,2492.8,2492.3,4.01229]
[1730858973372,0.8459734,2493.2,2492.6,5.83289907]
[1730858973590,0.8459734,2493.2,2492.7,0.55]
[1730858973751,4.01109,2493.1,2492.8,0.37068482]
[1730858973947,4.01109,2493.1,2492.7,0.55]
[1730858974150,0.0625734,2493.2,2492.8,0.37075678]
[1730858974350,0.0625734,2493.2,2492.9,0.8039]
[1730858974584,0.03537591,2493.1,2492.9,0.8039]
[1730858974797,0.03537591,2493.1,2493.0,0.55]
[1730858974951,0.0625734,2493.2,2493.0,0.37034889]
[1730858975154,0.0625734,2493.2,2492.6,9.84466907]
[1730858975155,0.0625734,2493.2,2492.7,5.40819373]
[1730858975400,4.79457,2493.1,2492.8,0.37004438]
[1730858975595,4.01139,2492.9,2492.4,0.8039]
[1730858975781,4.01123,2493.0,2492.5,0.37018216]
[1730858976078,4.0112,2493.1,2492.6,6.20303051]
[1730858976294,0.0625734,2493.2,2492.4,0.8039]
[1730858976511,0.0625734,2493.2,2492.5,0.3702038]
[1730858976802,4.01189,2492.6,2492.1,1.76648299]
[1730858977143,4.01219,2492.4,2491.8,0.8039]
[1730858977299,4.01293,2492.0,2491.9,0.37047378]
[1730858977471,4.01293,2492.0,2491.6,0.37074413]
[1730858977472,4.01326,2491.8,2491.6,0.37074413]
[1730858977823,0.7834,2492.7,2491.7,6.63679907]
[1730858977969,0.7834,2492.7,2492.1,5.83289907]
[1730858977970,4.79527,2492.7,2492.1,5.83289907]
[1730858978171,4.01209,2492.5,2491.8,5.83289907]
[1730858978392,4.01209,2492.5,2491.8,9.84599907]
[1730858978589,4.01209,2492.5,2491.9,0.37056213]
[1730858978793,4.01209,2492.5,2492.0,0.37056213]
[1730858978996,4.9407677,2492.5,2491.9,0.55]
[1730858979196,4.01222,2492.4,2491.8,5.83289907]
[1730858979384,4.9407677,2492.5,2491.9,0.37070061]
[1730858979582,4.01237,2492.3,2491.8,0.55]
[1730858979894,4.413857,2492.2,2491.7,0.8039]
[1730858980099,4.413757,2492.2,2491.8,0.37069257]
[1730858980305,4.413757,2492.2,2491.7,0.8039]
[1730858980306,0.401237,2492.2,2491.7,0.8039]
[1730858980614,4.01237,2492.3,2491.8,0.37079906]
[1730858980787,4.01237,2492.3,2491.7,0.8039]
[1730858980989,4.9407677,2492.5,2491.8,0.37063918]
[1730858981213,4.01221,2492.4,2491.9,0.37063918]
[1730858981375,4.01239,2492.3,2491.7,1.39684094]
[1730858981572,4.01239,2492.3,2491.8,0.37062851]
[1730858981775,4.01239,2492.3,2491.9,0.37062851]
[1730858981973,4.814873,2492.3,2491.7,0.8039]
[1730858982187,0.7834,2492.7,2491.8,4.64327177]
[1730858982188,4.01208,2492.5,2491.8,4.64327177]
[1730858982404,4.01208,2492.5,2491.8,4.56302]
[1730858982708,4.01239,2492.3,2491.9,0.37079179]
[1730858982922,4.01239,2492.3,2491.8,0.92067624]
[1730858983081,0.401208,2492.4,2491.9,0.37078469]
[1730858983281,0.401208,2492.4,2492.0,0.37078469]
[1730858983486,4.413518,2492.4,2491.8,5.52714345]
[1730858983695,4.413518,2492.4,2491.9,0.37073397]
[1730858983891,4.79518,2492.7,2492.0,0.45091133]
[1730858984106,4.01197,2492.6,2492.0,4.0127]
[1730858984280,4.01205,2492.5,2492.1,0.3706406]
[1730858984496,4.01205,2492.5,2491.9,5.79432009]
[1730858984695,4.01205,2492.5,2492.0,0.37069152]
[1730858984898,4.01205,2492.5,2491.9,10.40039311]
[1730858985100,4.01205,2492.5,2492.0,0.37069426]
[1730858985280,4.01205,2492.5,2491.9,9.80728009]
[1730858985619,4.01236,2492.3,2492.0,0.37077695]
[1730858985820,4.01236,2492.3,2491.8,0.92067624]
[1730858986121,4.01255,2492.2,2491.9,0.37084774]
[1730858986431,4.01255,2492.2,2491.7,0.8039]
[1730858986720,4.83887,2492.1,2491.4,4.0138]
[1730858986878,0.8261,2492.9,2491.5,6.99784863]
[1730858987073,3.0,2492.8,2492.3,4.01231]
[1730858987318,4.01148,2492.9,2492.3,4.01231]
[1730858987477,4.01148,2492.9,2492.4,5.21536182]
[1730858987675,4.01116,2493.1,2492.5,4.38283353]
[1730858987910,4.01154,2492.9,2492.5,0.55]
[1730858988126,4.01175,2492.7,2492.4,0.7521]
[1730858988279,4.01203,2492.5,2492.0,0.7521]
[1730858988483,4.01175,2492.7,2492.1,0.96447187]
[1730858988699,4.01175,2492.7,2492.2,0.37094958]
[1730858989026,4.01175,2492.7,2492.3,0.37094958]
[1730858989188,4.01175,2492.7,2492.1,4.60621909]
[1730858989518,4.8996234,2493.2,2492.5,0.7521]
[1730858989519,4.01114,2493.1,2492.5,0.7521]
[1730858989718,4.01117,2493.1,2492.6,0.37116501]
[1730858989901,4.01117,2493.1,2492.5,1.34567182]
[1730858989902,4.01146,2492.9,2492.5,0.7521]
[1730858990078,4.01146,2492.9,2492.6,0.37105055]
[1730858990282,0.8886734,2493.2,2492.5,0.7521]
[1730858990482,0.8886734,2493.2,2492.6,0.37110889]
[1730858990483,4.01132,2493.0,2492.6,0.37110889]
[1730858990683,4.01132,2493.0,2492.7,0.37110889]
[1730858990881,4.01132,2493.0,2492.5,0.7521]
[1730858990882,0.0625734,2493.2,2492.8,4.38250838]
[1730858991113,0.0625734,2493.2,2493.1,10.35539009]
[1730858991421,0.8261,2494.2,2493.1,1.51440181]
[1730858991643,4.01021,2493.7,2493.2,0.96440181]
[1730858991803,0.401021,2493.7,2493.3,0.37105838]
[1730858992003,4.00986,2493.9,2493.4,0.37105838]
[1730858992326,0.8261,2494.2,2493.0,0.7521]
[1730858992327,4.01023,2493.7,2493.0,0.7521]
[1730858992482,4.01023,2493.7,2493.0,4.76331]
[1730858992826,4.00986,2493.9,2493.5,0.37067636]
[1730858993037,7.00962,2494.0,2493.5,0.37067636]
[1730858993335,4.00978,2493.9,2493.5,0.37067636]
[1730858993538,0.8361,2494.4,2493.5,0.37067636]
[1730858993539,4.83564,2494.1,2493.5,0.37067636]
[1730858993692,4.00989,2493.9,2493.5,0.37067636]
[1730858993898,4.83564,2494.1,2493.5,0.37067636]
[1730858994159,4.0098,2493.9,2493.5,0.37067636]
[1730858994337,4.01012,2493.7,2493.5,0.37067636]
[1730858994638,4.01026,2493.6,2493.5,0.37067636]
[1730858995432,7.01026,2493.6,2493.5,0.37067636]
[1730858996242,7.01026,2493.6,2493.1,0.37082171]
[1730858996243,4.0109,2493.2,2493.1,0.37082171]
[1730858996404,4.813064,2493.2,2493.1,0.37082171]
[1730858997124,4.01113,2493.1,2492.5,4.01201]
[1730858997699,4.01118,2493.1,2492.5,4.01201]
[1730858998412,0.802164,2493.2,2492.6,4.01185]
[1730858998599,0.802164,2493.2,2492.5,4.01201]
[1730858998933,4.01082,2493.3,2492.3,4.76439]
[1730858998934,4.4924684,2493.1,2492.4,4.60712447]
[1730858999158,4.4924684,2493.1,2492.5,4.01203]
[1730858999300,4.01124,2493.0,2492.5,4.01203]
[1730858999496,4.01092,2493.2,2492.6,4.56177]
[1730858999698,4.01113,2493.1,2492.5,4.01203]
[1730859000027,4.01126,2493.0,2492.4,0.55]
[1730859000193,4.01113,2493.1,2492.4,5.1573995]
[1730859000397,0.401113,2493.0,2492.5,4.01203]
[1730859000598,4.412353,2493.0,2492.5,4.01203]
[1730859001312,4.412483,2493.0,2492.3,0.7521]
[1730859001522,8.423863,2493.0,2492.3,4.76444]
[1730859001725,3.401113,2493.0,2492.4,0.08023213]
[1730859001902,7.412363,2493.0,2492.5,4.01199]
[1730859002237,8.423723,2493.0,2492.3,4.76432]
[1730859002439,0.7412363,2492.9,2492.3,0.7521]
[1730859002640,4.01157,2492.8,2492.3,4.76443]
[1730859002826,0.7412363,2492.9,2492.3,4.76443]
[1730859003233,4.88804363,2492.8,2492.3,0.7521]
[1730859003740,4.01166,2492.8,2492.2,5.79432009]
[1730859003949,4.01175,2492.7,2492.2,5.79432009]
[1730859005448,4.01166,2492.8,2492.2,5.79432009]
[1730859005647,8.02334,2492.8,2492.2,5.79432009]
[1730859005949,7.01142,2492.9,2492.3,4.01235]
[1730859006146,4.01167,2492.8,2492.2,5.79432009]
[1730859006346,4.01167,2492.8,2492.3,4.01231]
[1730859006547,3.0,2492.9,2492.3,4.01231]
[1730859006835,4.01129,2493.0,2492.5,5.79432009]
[1730859006836,4.01124,2493.0,2492.5,5.79432009]
[1730859007253,4.01139,2492.9,2492.4,4.80597]
[1730859007646,4.01124,2493.0,2492.4,8.81806]
[1730859007944,4.489154,2493.0,2492.4,8.81806]
[1730859008352,4.489154,2493.0,2492.4,4.80597]
[1730859008542,4.489154,2493.0,2492.4,8.81805]
[1730859008887,0.477914,2493.0,2492.4,0.7939]
[1730859009199,4.01118,2493.1,2492.4,0.7939]
[1730859009200,4.01141,2492.9,2492.4,5.1782172]
[1730859009373,4.01141,2492.9,2492.4,4.80594]
[1730859010877,4.01141,2492.9,2492.4,0.7939]
[1730859011042,0.401141,2492.8,2492.4,0.7939]
[1730859011243,4.01141,2492.9,2492.4,0.7939]
[1730859011444,4.01203,2492.5,2492.4,1.16625814]
[1730859011745,4.0119,2492.6,2492.1,1.16625814]
[1730859012781,4.0119,2492.6,2492.1,5.17880788]
[1730859012967,4.0119,2492.6,2492.1,0.7939]
[1730859013173,4.02107,2493.1,2492.1,0.7939]
[1730859013174,4.01204,2492.5,2492.1,0.7939]
[1730859013373,4.01182,2492.7,2492.1,5.17896766]
[1730859013560,8.02367,2492.7,2492.1,4.80654]
[1730859013762,4.01182,2492.7,2492.1,4.80654]
[1730859013960,4.01182,2492.7,2492.2,0.3723901]
[1730859014286,4.814149,2492.7,2492.1,4.80654]
[1730859014459,4.01206,2492.5,2492.1,0.7939]
[1730859014793,4.814149,2492.7,2492.1,0.7939]
[1730859014794,0.8102,2492.6,2492.1,0.7939]
[1730859014947,4.01244,2492.3,2491.8,0.7588]
[1730859015152,0.8102,2492.6,2491.9,5.79432009]
[1730859015153,4.01212,2492.5,2491.9,5.79432009]
[1730859015458,4.01149,2492.9,2492.4,4.01217]
[1730859015663,4.490127,2493.0,2492.5,5.79432009]
[1730859015888,0.478897,2493.0,2492.5,5.79432009]
[1730859016187,4.490127,2493.0,2492.5,5.79432009]
[1730859016388,0.478897,2493.0,2492.5,5.79432009]
[1730859016601,4.01215,2492.5,2492.0,0.7588]
[1730859016749,4.01178,2492.7,2492.0,0.7588]
[1730859016944,0.9311477,2492.9,2492.0,10.56594009]
[1730859017145,0.9311477,2492.9,2492.1,0.37249914]
[1730859017350,4.01207,2492.5,2492.1,0.37249914]
[1730859017590,4.01233,2492.4,2492.0,0.7588]
[1730859017884,4.01248,2492.3,2491.9,0.37264537]
[1730859018087,4.013,2491.9,2491.8,0.37264537]
[1730859018261,4.013,2491.9,2491.6,0.82882608]
[1730859018262,4.01316,2491.8,2491.6,0.82882608]
[1730859018590,4.01332,2491.7,2491.6,0.82882608]
[1730859019160,4.013,2491.9,2491.6,0.82882608]
[1730859019367,4.01286,2492.0,2491.6,0.82882608]
[1730859019581,4.01275,2492.1,2491.6,0.82882608]
[1730859019892,4.01275,2492.1,2491.6,1.20130194]
[1730859020090,4.01238,2492.3,2491.6,6.10210526]
[1730859020277,4.01238,2492.3,2491.7,4.85228503]
[1730859020477,0.8102,2492.4,2491.7,0.83905503]
[1730859020676,4.01212,2492.5,2491.9,4.01295]
[1730859020877,4.713332,2492.5,2491.9,4.01295]
[1730859021080,4.82201,2492.7,2491.9,9.80727009]
[1730859021261,4.01253,2492.2,2491.7,4.77202]
[1730859021467,4.01223,2492.4,2491.7,4.772]
[1730859021665,4.01247,2492.3,2491.7,4.772]
[1730859022089,4.01223,2492.4,2491.8,4.01307]
[1730859022290,8.02453,2492.4,2491.8,4.01307]
[1730859022454,4.01223,2492.4,2491.8,4.01307]
[1730859022792,8.02399,2492.6,2492.0,4.7715]
[1730859022964,4.01196,2492.6,2492.0,0.7588]
[1730859023165,4.01212,2492.5,2492.0,0.7588]
[1730859023365,4.01196,2492.6,2492.0,0.7588]
[1730859023366,4.0122,2492.4,2492.0,0.7588]
[1730859023767,8.02452,2492.4,2492.0,0.7588]
[1730859023969,4.0122,2492.4,2492.0,0.7588]
[1730859024238,4.0122,2492.4,2491.8,0.37272398]
[1730859024239,4.01236,2492.3,2491.8,1.13152398]
[1730859024382,4.01236,2492.3,2491.9,0.37272398]
[1730859024587,4.01261,2492.2,2491.9,0.37272398]
[1730859024894,4.01283,2492.1,2491.8,0.7588]
[1730859025097,8.02463,2492.4,2491.8,0.7588]
[1730859025296,4.01262,2492.2,2491.8,0.7588]
[1730859025503,0.401262,2492.1,2491.8,0.7588]
[1730859025800,4.01261,2492.2,2491.8,1.13173308]
[1730859026103,0.8102,2492.7,2491.8,1.13173308]
[1730859026104,4.01285,2492.0,2491.8,1.13173308]
[1730859026262,4.013,2491.9,2491.5,1.13170344]
[1730859026458,4.8228,2492.2,2491.6,0.37290344]
[1730859026708,4.01302,2491.9,2491.6,0.37290344]
[1730859027068,4.01297,2492.0,2491.6,0.37290344]
[1730859027270,4.01297,2492.0,2491.5,1.13170344]
[1730859027492,4.01303,2491.9,2491.5,1.13170344]
[1730859027803,4.944717,2492.0,2491.5,0.7588]
[1730859028016,4.01196,2492.6,2492.0,4.01275]
[1730859028339,4.01196,2492.6,2492.1,0.8157]
[1730859029179,8.02394,2492.6,2492.1,0.8157]
[1730859029373,4.01231,2492.4,2492.1,0.8157]
[1730859029685,0.482216,2492.5,2492.1,0.8157]
[1730859029901,4.79459,2493.1,2492.3,4.01223]
[1730859030109,4.01101,2493.2,2492.5,4.0119]
[1730859030293,4.01108,2493.1,2492.4,4.82785]
[1730859030606,4.01127,2493.0,2492.4,4.82785]
[1730859031021,4.01127,2493.0,2492.5,0.37261624]
[1730859031250,0.01,2493.0,2491.7,0.8157]
[1730859031517,4.01236,2492.3,2491.8,0.37285432]
[1730859031674,4.01238,2492.3,2491.8,0.37285432]
[1730859031875,0.7834,2492.5,2491.8,0.37285432]
[1730859031876,4.01253,2492.2,2491.8,0.37285432]
[1730859032114,4.0840161,2492.2,2491.7,0.8157]
[1730859032322,4.01268,2492.1,2491.7,0.8157]
[1730859032501,4.08422914,2492.1,2491.7,0.8157]
[1730859032814,4.08426914,2492.1,2491.7,0.8157]
[1730859033109,4.08426914,2492.1,2491.1,0.88549993]
[1730859033110,4.01342,2491.7,2491.1,0.88549993]
[1730859033310,4.01315,2491.9,2491.2,0.45355113]
[1730859033474,4.01315,2491.9,2491.2,4.46752113]
[1730859033475,0.07118589,2491.6,2491.2,4.46752113]
[1730859033675,4.01315,2491.9,2491.3,0.3733106]
[1730859033875,4.01315,2491.9,2491.2,0.3733106]
[1730859033876,0.07114138,2491.5,2491.2,0.3733106]
[1730859034130,4.0135,2491.6,2491.2,0.3733106]
[1730859034276,0.07109687,2491.4,2491.1,0.8157]
[1730859034472,4.01332,2491.7,2491.1,0.8157]
[1730859034675,0.07109671,2491.3,2491.1,0.8157]
[1730859034971,0.7934,2492.0,2491.1,0.8157]
[1730859034972,4.013,2491.9,2491.1,0.8157]
[1730859035314,4.01347,2491.7,2491.1,0.8157]
[1730859035626,4.01381,2491.4,2490.9,0.8157]
[1730859035777,0.7834,2491.5,2490.9,0.8157]
[1730859035778,4.79717,2491.5,2490.9,0.8157]
[1730859036114,0.06862363,2491.4,2490.9,1.26874991]
[1730859036285,0.06862363,2491.4,2490.9,5.84039444]
[1730859036487,0.7834,2491.8,2491.2,4.82982]
[1730859036488,3.0,2491.8,2491.2,4.82982]
[1730859036820,3.0,2491.8,2491.2,0.8157]
[1730859037016,3.0,2491.8,2491.2,0.89597342]
[1730859037226,0.06875716,2491.7,2491.2,0.89597342]
[1730859037430,0.06875716,2491.7,2491.2,1.38698776]
[1730859038216,0.06875716,2491.7,2491.2,0.8157]
[1730859038424,4.08216716,2491.7,2491.2,0.8157]
[1730859038777,0.06875716,2491.7,2491.2,0.8157]
[1730859039102,4.01341,2491.7,2491.2,0.8157]
[1730859039308,0.06374693,2491.6,2491.2,0.8157]
[1730859039473,0.06374693,2491.6,2491.2,0.89597347]
[1730859039673,0.06374693,2491.6,2491.3,4.01394]
[1730859039910,4.79594,2492.2,2491.5,4.01364]
[1730859040110,4.79594,2492.2,2491.6,4.82917]
[1730859040111,4.01254,2492.2,2491.6,4.82917]
[1730859040314,4.01254,2492.2,2491.6,4.82909]
[1730859040482,0.06397643,2492.1,2491.6,4.82909]
[1730859040990,0.06397643,2492.1,2491.8,4.013]
[1730859041204,0.06397643,2492.1,2492.0,0.8157]
[1730859041415,8.02395,2492.6,2492.0,0.8157]
[1730859041622,4.01197,2492.6,2492.0,0.8157]
[1730859041791,4.01203,2492.5,2492.0,0.8157]
[1730859041975,0.06218013,2492.5,2492.0,4.82853]
[1730859042410,0.06218013,2492.5,2492.0,5.72060796]
[1730859042618,0.06218013,2492.5,2492.1,4.09280964]
[1730859042785,4.01163,2492.8,2492.1,4.01256]
[1730859043000,0.06002413,2492.4,2492.1,4.01256]
[1730859043199,4.0114,2492.9,2492.2,8.10517569]
[1730859043446,0.05997965,2492.3,2492.2,4.64266569]
[1730859043604,0.05997965,2492.3,2492.2,4.56242]
[1730859043791,4.01132,2493.0,2492.5,0.7823]
[1730859043991,0.06032243,2492.9,2492.5,0.7823]
[1730859044701,0.06032243,2492.9,2492.5,4.79424]
[1730859044899,0.06032243,2492.9,2492.5,0.7823]
[1730859045103,0.7834,2493.1,2492.5,0.7823]
[1730859045326,0.06030667,2492.8,2492.5,0.7823]
[1730859045537,4.01133,2493.0,2492.5,0.7823]
[1730859045707,0.06031416,2492.7,2492.5,0.7823]
[1730859045904,4.01139,2492.9,2492.5,0.7823]
[1730859046090,0.06026968,2492.6,2492.5,0.7823]
[1730859046491,3.0,2492.9,2492.2,0.7823]
[1730859046713,4.0727916,2492.6,2492.2,0.7823]
[1730859046930,4.01203,2492.6,2492.2,0.7823]
[1730859047107,0.06086809,2492.5,2492.2,4.79481]
[1730859047312,4.01157,2492.8,2492.2,4.79481]
[1730859047515,0.06074584,2492.4,2492.2,0.7823]
[1730859047718,0.06074584,2492.4,2491.7,0.37232577]
[1730859047719,4.01295,2492.0,2491.7,0.37232577]
[1730859047935,4.01274,2492.1,2491.5,4.38595577]
[1730859048138,0.06054507,2491.9,2491.5,4.93183158]
[1730859048350,4.01274,2492.1,2491.5,4.93183158]
[1730859048351,4.07352957,2492.0,2491.5,0.91820158]
[1730859048639,0.06043255,2491.8,2491.4,1.15470037]
[1730859048926,3.0,2492.2,2491.4,4.79596]
[1730859048927,0.06025046,2491.7,2491.4,4.79596]
[1730859049133,0.06025046,2491.7,2491.5,4.01362]
[1730859049301,7.01261,2492.2,2491.6,0.880958]
[1730859049509,0.06005729,2491.6,2491.5,4.01362]
[1730859049738,7.01261,2492.2,2491.5,4.01362]
[1730859049901,0.06005729,2491.6,2491.5,4.01362]
[1730859050231,4.01269,2492.1,2491.5,4.01362]
[1730859050432,0.06005729,2491.6,2491.5,4.01362]
[1730859050636,0.06005729,2491.6,2491.5,5.47401001]
[1730859050810,0.05995763,2491.6,2491.5,5.47401001]
[1730859050998,4.01286,2492.0,2491.5,1.46039001]
[1730859051199,4.01298,2492.0,2491.4,0.7823]
[1730859051531,0.06009114,2491.9,2491.4,0.7823]
[1730859052542,0.06009114,2491.9,2491.7,0.7823]
[1730859052745,3.0,2492.2,2491.7,0.7823]
[1730859052915,4.0134,2491.7,2491.0,4.01436]
[1730859053234,4.0134,2491.7,2491.2,0.7823]
[1730859053736,4.01367,2491.5,2491.0,0.7823]
[1730859053939,4.01367,2491.5,2491.0,1.15494684]
[1730859054103,0.05984494,2491.4,2491.0,0.7823]
[1730859054440,4.01367,2491.5,2491.0,2.24289301]
[1730859054933,0.05983385,2491.4,2491.0,2.24289301]
[1730859055311,4.01367,2491.5,2491.0,2.24289301]
[1730859055532,0.7571,2491.6,2491.0,4.79673]
[1730859055733,0.05983385,2491.4,2491.0,4.79673]
[1730859055941,0.05987836,2491.5,2491.0,4.79673]
[1730859056144,0.05987836,2491.5,2491.0,8.81108]
[1730859056456,8.02686,2491.7,2491.0,6.25719001]
[1730859056612,0.05982275,2491.4,2491.0,6.25719001]
[1730859056948,0.05955154,2491.3,2491.0,6.25719001]
[1730859057125,4.01361,2491.6,2491.0,6.25719001]
[1730859057325,0.05950702,2491.2,2491.0,6.25719001]
[1730859057523,0.05950702,2491.2,2491.0,2.24284001]
[1730859057748,4.01374,2491.5,2491.0,2.24284001]
[1730859057944,0.7571,2491.8,2491.1,0.08028113]
[1730859058155,0.05960912,2491.4,2491.3,4.01395]
[1730859058356,4.01319,2491.8,2491.3,4.01395]